fUST/lending_fUST_20241219
["ID","MTS","AMOUNT","RATE_DAILY","PERIOD"]
[345988265,1734606640875,-500.0,0.00024931,6]
[345988266,1734606640884,-500.0,0.00024931,2]
[345988267,1734606640894,-500.0,0.00024931,6]
[345988268,1734606640904,-500.0,0.00024931,6]
[345988269,1734606640913,-806.37,0.00024931,6]
[345988270,1734606640923,-515.68860717,0.00024931,6]
[345988271,1734606640932,-784.46,0.00024931,6]
[345988272,1734606640942,-150.0,0.00024931,6]
[345988273,1734606640951,-500.0,0.00024931,6]
[345988274,1734606640961,-182.80679257,0.00024931,6]
[345988275,1734606640970,-500.0,0.00024931,6]
[345988276,1734606640980,-528.46496481,0.00024931,6]
[345988277,1734606640989,-862.14,0.00024931,6]
[345988278,1734606640998,-266.8760048,0.00024931,6]
[345988279,1734606641008,-2332.35,0.00024931,2]
[345988280,1734606641017,-3853.69,0.00024931,2]
[345988281,1734606641027,-1308.17,0.00024931,6]
[345988282,1734606641036,-500.0,0.00024931,6]
[345988283,1734606641045,-639.56,0.00024931,6]
[345988284,1734606641055,-1224.85,0.00024931,6]
[345988285,1734606641064,-500.0,0.00024931,6]
[345988286,1734606641073,-500.0,0.00024931,6]
[345988287,1734606641083,-500.0,0.00024931,6]
[345988288,1734606641093,-500.0,0.00024931,6]
[345988289,1734606641102,-1259.86,0.00024931,6]
[345988290,1734606641111,-500.0,0.00024931,6]
[345988291,1734606641121,-500.0,0.00024931,6]
[345988292,1734606641130,-660.4,0.00024931,6]
[345988293,1734606641139,-500.0,0.00024931,6]
[345988294,1734606641148,-182.15225871,0.00024931,6]
[345988295,1734606641158,-580.63369818,0.00024931,6]
[345988296,1734606641167,-500.0,0.00024931,6]
[345988297,1734606641176,-500.0,0.00024931,6]
[345988298,1734606641186,-500.0,0.00024931,6]
[345988299,1734606641195,-500.0,0.00024931,6]
[345988300,1734606641205,-500.0,0.00024931,6]
[345988301,1734606641215,-500.0,0.00024931,6]
[345988302,1734606641224,-2661.23,0.00024931,6]
[345988303,1734606641234,-541.00336362,0.00024931,6]
[345988304,1734606641243,-500.0,0.00024931,6]
[345988305,1734606641253,-531.11,0.00024931,6]
[345988306,1734606641262,-500.0,0.00024931,6]
[345988307,1734606641271,-601.07142014,0.00024931,6]
[345988308,1734606641281,-500.0,0.00024931,6]
[345988309,1734606641291,-1852.91,0.00024931,2]
[345988310,1734606641300,-727.23,0.00024931,6]
[345988311,1734606641310,-272.71169827,0.00024931,6]
[345988312,1734606641320,-509.06576105,0.00024931,6]
[345988313,1734606641330,-500.0,0.00024931,6]
[345988314,1734606641340,-213.36153794,0.00024931,6]
[345988315,1734606641350,-500.0,0.00024931,6]
[345988316,1734606641360,-500.0,0.00024931,6]
[345988317,1734606641369,-500.0,0.00024931,6]
[345988318,1734606641379,-500.0,0.00024931,2]
[345988319,1734606641389,-1376.2,0.00024931,6]
[345988320,1734606641398,-275.69126371,0.00024931,6]
[345988321,1734606641408,-3441.13,0.00024931,6]
[345988322,1734606641418,-1750.68,0.00024931,6]
[345988323,1734606641428,-609.36,0.00024931,6]
[345988324,1734606641437,-500.0,0.00024931,6]
[345988325,1734606641447,-260.84244121,0.00024931,6]
[345988326,1734606641457,-6295.78,0.00024931,6]
[345988327,1734606641466,-641.15,0.00024931,6]
[345988328,1734606641476,-500.0,0.00024931,6]
[345988329,1734606641486,-500.0,0.00024931,6]
[345988330,1734606641496,-500.0,0.00024931,6]
[345988331,1734606641506,-502.38935622,0.00024931,2]
[345988332,1734606641515,-500.0,0.00024931,6]
[345988333,1734606641525,-503.30139805,0.00024931,6]
[345988334,1734606641535,-399.04329497,0.00024931,6]
[345988335,1734606641545,-11493.46,0.00024931,6]
[345988336,1734606641555,-500.0,0.00024931,6]
[345988337,1734606641565,-8008.96,0.00024931,6]
[345988338,1734606641584,-7951.57,0.00024931,6]
[345988339,1734606641595,-4391.91,0.00024931,6]
[345988340,1734606641605,-943.53,0.00024931,6]
[345988341,1734606641614,-1206.63,0.00024931,6]
[345988342,1734606641624,-585.62,0.00024931,6]
[345988343,1734606641633,-500.0,0.00024931,6]
[345988344,1734606641642,-887.0,0.00024931,6]
[345988345,1734606641652,-500.0,0.00024931,6]
[345988346,1734606641662,-500.0,0.00024931,6]
[345988347,1734606641672,-998.19,0.00024931,6]
[345988348,1734606641682,-32427.44,0.00024931,6]
[345988349,1734606641692,-500.0,0.00024931,6]
[345988350,1734606641702,-3710.11,0.00024931,6]
[345988351,1734606641711,-500.0,0.00024931,6]
[345988352,1734606641722,-500.0,0.00024931,6]
[345988353,1734606641732,-500.0,0.00024931,6]
[345988354,1734606641746,-500.0,0.00024931,6]
[345988355,1734606641756,-500.0,0.00024931,6]
[345988356,1734606641888,-500.0,0.00024931,6]
[345988357,1734606641899,-500.0,0.00024931,6]
[345988358,1734606641908,-1159.93,0.00024931,6]
[345988359,1734606641918,-688.24,0.00024931,6]
[345988360,1734606641927,-1000.0,0.00024931,2]
[345988361,1734606641936,-500.0,0.00024931,6]
[345988362,1734606641945,-500.0,0.00024931,6]
[345988363,1734606641954,-3050.5,0.00024931,6]
[345988364,1734606641963,-2688.25,0.00024931,6]
[345988365,1734606641972,-1000.0,0.00024931,2]
[345988366,1734606641981,-13827.35,0.00024931,6]
[345988367,1734606641991,-500.0,0.00024931,6]
[345988368,1734606642002,-500.0,0.00024931,6]
[345988369,1734606642012,-500.0,0.00024931,6]
[345988370,1734606642022,-500.0,0.00024931,6]
[345988371,1734606642032,-510.91061584,0.00024931,6]
[345988372,1734606642042,-912.88,0.00024931,6]
[345988373,1734606642051,-1104.85,0.00024931,6]
[345988374,1734606642060,-504.65132614,0.00024931,6]
[345988375,1734606642069,-773.44,0.00024931,6]
[345988376,1734606642078,-500.0,0.00024931,6]
[345988377,1734606642088,-290.17403944,0.00024931,6]
[345988378,1734606642098,-500.0,0.00024931,6]
[345988379,1734606642107,-653.81,0.00024931,6]
[345988380,1734606642116,-500.0,0.00024931,6]
[345988381,1734606642125,-500.0,0.00024931,6]
[345988382,1734606642133,-500.0,0.00024931,6]
[345988383,1734606642143,-500.0,0.00024931,6]
[345988384,1734606642152,-500.0,0.00024931,2]
[345988385,1734606642160,-511.32158679,0.00024931,6]
[345988386,1734606642170,-6950.36,0.00024931,6]
[345988387,1734606642179,-831.88,0.00024931,6]
[345988388,1734606642188,-500.0,0.00024931,2]
[345988389,1734606642197,-506.83243979,0.00024931,6]
[345988390,1734606642205,-501.69466415,0.00024931,2]
[345988391,1734606642215,-1728.03,0.00024931,6]
[345988392,1734606642223,-500.0,0.00024931,2]
[345988393,1734606642232,-3111.54,0.00024931,2]
[345988394,1734606642241,-500.0,0.00024931,6]
[345988395,1734606642250,-500.0,0.00024931,2]
[345988396,1734606642260,-20403.29,0.00024931,6]
[345988397,1734606642269,-4073.59653892,0.00024934,2]
[345988398,1734606642278,-237.0,0.0002496,15]
[345988399,1734606642287,-35434.05606043,0.0002497,2]
[345988400,1734606642297,-351.9620625,0.00024982,2]
[345988401,1734606642306,-300.4,0.00025,2]
[345988402,1734606642315,-120632.81928641,0.00025,7]
[345988403,1734606642326,-55000.0,0.00025,30]
[345988404,1734606642335,-4440.91377295,0.00025,2]
[345988405,1734606642346,-400.0,0.00025,7]
[345988406,1734606642355,-300.0,0.00025,2]
[345988407,1734606642364,-162.9,0.00025,2]
[345988408,1734606642373,-3389.40135855,0.00025,7]
[345988409,1734606642382,-5000.0,0.00025,7]
[345988410,1734606642392,-2362.69971706,0.00025,2]
[345988411,1734606642401,-3007.0,0.00025,2]
[345988412,1734606642410,-2000.0,0.00025,2]
[345988413,1734606642419,-151.0,0.00025,2]
[345988414,1734606642429,-5974.7281388,0.00025,2]
[345988415,1734606642438,-4000.0,0.00025,2]
[345988416,1734606642447,-1214.51917369,0.00025,30]
[345988417,1734606642457,-1214.51917369,0.00025,30]
[345988418,1734606642466,-1214.51917369,0.00025,30]
[345988419,1734606642474,-7501.15845149,0.00025,2]
[345988420,1734606642483,-6148.95001,0.00025,2]
[345988421,1734606642493,-699.01259929,0.00025,30]
[345988422,1734606642502,-500.0,0.00025,30]
[345988423,1734606642511,-500.0,0.00025,30]
[345988424,1734606642520,-500.0,0.00025,30]
[345988425,1734606642529,-500.0,0.00025,30]
[345988427,1734606642538,-875.29239227,0.00025,30]
[345988429,1734606642547,-600.0,0.00025,30]
[345988430,1734606642556,-600.0,0.00025,30]
[345988433,1734606642566,-600.0,0.00025,30]
[345988435,1734606642575,-600.0,0.00025,30]
[345988437,1734606642584,-500.0,0.00025,30]
[345988438,1734606642595,-600.0,0.00025,30]
[345988440,1734606642604,-502.44586882,0.00025,30]
[345988442,1734606642613,-500.0,0.00025,30]
[345988443,1734606642622,-600.0,0.00025,30]
[345988444,1734606642631,-600.0,0.00025,30]
[345988445,1734606642640,-600.0,0.00025,30]
[345988446,1734606642650,-862.65061708,0.00025,30]
[345988447,1734606642659,-600.0,0.00025,30]
[345988448,1734606642669,-800.0,0.00025,30]
[345988449,1734606642679,-600.0,0.00025,30]
[345988450,1734606642688,-600.0,0.00025,30]
[345988451,1734606642697,-800.0,0.00025,30]
[345988452,1734606642706,-600.0,0.00025,30]
[345988453,1734606642716,-600.0,0.00025,30]
[345988454,1734606642726,-600.0,0.00025,30]
[345988455,1734606642735,-600.0,0.00025,30]
[345988456,1734606642749,-600.0,0.00025,30]
[345988458,1734606642759,-800.0,0.00025,30]
[345988459,1734606642768,-600.0,0.00025,30]
[345988460,1734606642777,-600.0,0.00025,30]
[345988463,1734606642788,-800.0,0.00025,30]
[345988465,1734606642798,-1005.31229765,0.00025,30]
[345988466,1734606642807,-600.0,0.00025,30]
[345988467,1734606642816,-800.0,0.00025,30]
[345988468,1734606642826,-600.0,0.00025,30]
[345988469,1734606642835,-800.0,0.00025,30]
[345988470,1734606642847,-600.0,0.00025,30]
[345988471,1734606642857,-800.0,0.00025,30]
[345988472,1734606642866,-600.0,0.00025,30]
[345988473,1734606642875,-800.0,0.00025,30]
[345988474,1734606642884,-600.0,0.00025,30]
[345988475,1734606642893,-800.0,0.00025,30]
[345988476,1734606642902,-600.0,0.00025,30]
[345988477,1734606642911,-800.0,0.00025,30]
[345988478,1734606642920,-600.0,0.00025,30]
[345988479,1734606642931,-800.0,0.00025,30]
[345988481,1734606642940,-800.0,0.00025,30]
[345988482,1734606642949,-800.0,0.00025,30]
[345988484,1734606642958,-600.0,0.00025,30]
[345988486,1734606642967,-1076.34902809,0.00025,30]
[345988488,1734606642977,-1700.0,0.00025,30]
[345988489,1734606642986,-1700.0,0.00025,30]
[345988490,1734606642995,-1700.0,0.00025,30]
[345988491,1734606643004,-1700.0,0.00025,30]
[345988492,1734606643013,-1700.0,0.00025,30]
[345988493,1734606643023,-1700.0,0.00025,30]
[345988494,1734606643032,-1700.0,0.00025,30]
[345988496,1734606643042,-1700.0,0.00025,30]
[345988497,1734606643051,-1700.0,0.00025,30]
[345988498,1734606643060,-1700.0,0.00025,30]
[345988499,1734606643069,-1700.0,0.00025,30]
[345988500,1734606643078,-1700.0,0.00025,30]
[345988501,1734606643087,-1700.0,0.00025,30]
[345988502,1734606643098,-2836.03250402,0.00025,30]
[345988503,1734606643107,-167.0,0.00025,2]
[345988504,1734606643116,-9786.82744629,0.0002502,2]
[345988505,1734606643125,-758.35090038,0.00025122,2]
[345988506,1734606643134,-500.0,0.00025205,6]
[345988508,1734606643143,-500.0,0.00025205,6]
[345988509,1734606643152,-500.0,0.00025205,6]
[345988510,1734606643161,-500.0,0.00025205,6]
[345988511,1734606643170,-500.0,0.00025205,6]
[345988512,1734606643178,-500.0,0.00025205,6]
[345988513,1734606643188,-500.0,0.00025205,2]
[345988514,1734606643196,-500.0,0.00025205,6]
[345988515,1734606643205,-500.0,0.00025205,6]
[345988516,1734606643215,-500.0,0.00025205,6]
[345988517,1734606643224,-806.37,0.00025205,6]
[345988518,1734606643233,-784.46,0.00025205,6]
[345988519,1734606643243,-150.0,0.00025205,6]
[345988520,1734606643252,-500.0,0.00025205,6]
[345988521,1734606643261,-500.0,0.00025205,6]
[345988522,1734606643271,-862.14,0.00025205,6]
[345988523,1734606643280,-2332.35,0.00025205,2]
[345988524,1734606643289,-3853.69,0.00025205,2]
[345988525,1734606643298,-1308.17,0.00025205,6]
[345988526,1734606643308,-500.0,0.00025205,6]
[345988527,1734606643317,-639.56,0.00025205,6]
[345988528,1734606643326,-1224.85,0.00025205,6]
[345988529,1734606643335,-500.0,0.00025205,6]
[345988530,1734606643346,-500.0,0.00025205,6]
[345988531,1734606643355,-230.88120836,0.00025205,6]
[345988532,1734606643364,-500.0,0.00025205,6]
[345988533,1734606643373,-1259.86,0.00025205,6]
[345988534,1734606643383,-500.0,0.00025205,6]
[345988535,1734606643392,-500.0,0.00025205,6]
[345988536,1734606643401,-660.4,0.00025205,6]
[345988537,1734606643410,-500.27472213,0.00025205,6]
[345988538,1734606643419,-510.92075392,0.00025205,6]
[345988539,1734606643428,-500.0,0.00025205,6]
[345988540,1734606643438,-512.31477237,0.00025205,6]
[345988541,1734606643447,-177.90526087,0.00025205,6]
[345988542,1734606643457,-500.0,0.00025205,6]
[345988543,1734606643466,-500.0,0.00025205,6]
[345988544,1734606643475,-2661.23,0.00025205,6]
[345988545,1734606643484,-500.0,0.00025205,6]
[345988546,1734606643494,-531.11,0.00025205,6]
[345988547,1734606643503,-500.0,0.00025205,6]
[345988548,1734606643512,-500.0,0.00025205,6]
[345988549,1734606643521,-1852.91,0.00025205,2]
[345988550,1734606643530,-727.23,0.00025205,6]
[345988551,1734606643539,-500.0,0.00025205,6]
[345988552,1734606643549,-520.06728622,0.00025205,6]
[345988553,1734606643559,-500.0,0.00025205,6]
[345988554,1734606643568,-500.0,0.00025205,6]
[345988555,1734606643577,-501.81629609,0.00025205,2]
[345988556,1734606643586,-1376.2,0.00025205,6]
[345988557,1734606643596,-3441.13,0.00025205,6]
[345988558,1734606643606,-1750.68,0.00025205,6]
[345988559,1734606643615,-609.36,0.00025205,6]
[345988560,1734606643624,-500.0,0.00025205,6]
[345988561,1734606643634,-6295.78,0.00025205,6]
[345988562,1734606643643,-641.15,0.00025205,6]
[345988563,1734606643652,-500.0,0.00025205,6]
[345988564,1734606643661,-500.0,0.00025205,6]
[345988565,1734606643670,-500.0,0.00025205,6]
[345988566,1734606643679,-500.0,0.00025205,6]
[345988567,1734606643689,-11493.46,0.00025205,6]
[345988568,1734606643698,-500.0,0.00025205,6]
[345988569,1734606643707,-8008.96,0.00025205,6]
[345988570,1734606643716,-7951.57,0.00025205,6]
[345988571,1734606643726,-4391.91,0.00025205,6]
[345988572,1734606643735,-943.53,0.00025205,6]
[345988573,1734606643749,-1206.63,0.00025205,6]
[345988574,1734606643759,-585.62,0.00025205,6]
[345988575,1734606643768,-500.0,0.00025205,6]
[345988576,1734606643778,-887.0,0.00025205,6]
[345988577,1734606643789,-500.0,0.00025205,6]
[345988578,1734606643798,-500.0,0.00025205,6]
[345988579,1734606643808,-998.19,0.00025205,6]
[345988580,1734606643818,-32427.44,0.00025205,6]
[345988581,1734606643828,-500.0,0.00025205,6]
[345988582,1734606643837,-3710.11,0.00025205,6]
[345988583,1734606643847,-500.0,0.00025205,6]
[345988584,1734606643857,-500.0,0.00025205,6]
[345988585,1734606643866,-500.0,0.00025205,6]
[345988586,1734606643875,-500.0,0.00025205,6]
[345988587,1734606643884,-500.0,0.00025205,6]
[345988588,1734606643894,-500.0,0.00025205,6]
[345988589,1734606643903,-500.0,0.00025205,6]
[345988590,1734606643913,-1159.93,0.00025205,6]
[345988591,1734606643922,-688.24,0.00025205,6]
[345988592,1734606643931,-1000.0,0.00025205,2]
[345988593,1734606643940,-500.0,0.00025205,6]
[345988594,1734606643950,-500.0,0.00025205,6]
[345988595,1734606643959,-3050.5,0.00025205,6]
[345988596,1734606643969,-2688.25,0.00025205,6]
[345988597,1734606643978,-1000.0,0.00025205,2]
[345988598,1734606643987,-13827.35,0.00025205,6]
[345988599,1734606643997,-500.0,0.00025205,6]
[345988600,1734606644007,-500.0,0.00025205,6]
[345988601,1734606644017,-500.0,0.00025205,6]
[345988602,1734606644027,-500.0,0.00025205,6]
[345988603,1734606644036,-912.88,0.00025205,6]
[345988604,1734606644046,-1104.85,0.00025205,6]
[345988605,1734606644056,-773.44,0.00025205,6]
[345988606,1734606644065,-500.0,0.00025205,6]
[345988607,1734606644074,-500.0,0.00025205,6]
[345988608,1734606644083,-653.81,0.00025205,6]
[345988609,1734606644094,-632.33232848,0.00025205,6]
[345988610,1734606644103,-500.0,0.00025205,6]
[345988611,1734606644112,-500.0,0.00025205,6]
[345988612,1734606644121,-500.0,0.00025205,6]
[345988613,1734606644131,-500.0,0.00025205,2]
[345988614,1734606644140,-6950.36,0.00025205,6]
[345988615,1734606644149,-831.88,0.00025205,6]
[345988616,1734606644159,-525.53268055,0.00025205,2]
[345988617,1734606644168,-1728.03,0.00025205,6]
[345988618,1734606644178,-500.0,0.00025205,2]
[345988619,1734606644188,-3111.54,0.00025205,2]
[345988620,1734606644197,-500.0,0.00025205,6]
[345988621,1734606644207,-500.0,0.00025205,2]
[345988622,1734606644216,-20403.29,0.00025205,6]
[345988623,1734606644225,-1000.0,0.00025221,2]
[345988624,1734606644234,-507.60848231,0.00025221,2]
[345988625,1734606644246,-4073.59653892,0.00025221,2]
[345988626,1734606644255,-153.0,0.00025256,2]
[345988627,1734606644265,-213.9640091,0.00025256,2]
[345988628,1734606644275,-153.2604004,0.00025256,2]
[345988629,1734606644285,-154.9808494,0.00025256,2]
[345988630,1734606644295,-153.0,0.00025256,2]
[345988631,1734606644304,-213.9640091,0.00025256,2]
[345988632,1734606644316,-500.0,0.00025479,6]
[345988633,1734606644325,-500.0,0.00025479,6]
[345988634,1734606644334,-500.0,0.00025479,6]
[345988635,1734606644346,-500.0,0.00025479,6]
[345988636,1734606644355,-500.0,0.00025479,6]
[345988637,1734606644365,-500.0,0.00025479,6]
[345988638,1734606644375,-500.0,0.00025479,2]
[345988639,1734606644384,-500.0,0.00025479,6]
[345988640,1734606644393,-500.0,0.00025479,6]
[345988641,1734606644403,-500.0,0.00025479,6]
[345988642,1734606644412,-806.37,0.00025479,6]
[345988643,1734606644422,-784.46,0.00025479,6]
[345988644,1734606644431,-150.0,0.00025479,6]
[345988645,1734606644441,-500.0,0.00025479,6]
[345988646,1734606644450,-500.0,0.00025479,6]
[345988647,1734606644460,-862.14,0.00025479,6]
[345988648,1734606644469,-2332.35,0.00025479,2]
[345988649,1734606644479,-3853.69,0.00025479,2]
[345988650,1734606644489,-1308.17,0.00025479,6]
[345988651,1734606644498,-500.0,0.00025479,6]
[345988652,1734606644508,-639.56,0.00025479,6]
[345988653,1734606644518,-1224.85,0.00025479,6]
[345988654,1734606644527,-500.0,0.00025479,6]
[345988655,1734606644537,-500.0,0.00025479,6]
[345988656,1734606644547,-500.0,0.00025479,6]
[345988657,1734606644556,-1259.86,0.00025479,6]
[345988658,1734606644566,-500.0,0.00025479,6]
[345988659,1734606644576,-500.0,0.00025479,6]
[345988660,1734606644585,-660.4,0.00025479,6]
[345988661,1734606644599,-500.0,0.00025479,6]
[345988662,1734606644608,-286.97979642,0.00025479,6]
[345988663,1734606644617,-500.0,0.00025479,6]
[345988664,1734606644627,-2661.23,0.00025479,6]
[345988665,1734606644637,-500.0,0.00025479,6]
[345988666,1734606644647,-531.11,0.00025479,6]
[345988667,1734606644656,-500.0,0.00025479,6]
[345988668,1734606644666,-500.0,0.00025479,6]
[345988669,1734606644675,-1852.91,0.00025479,2]
[345988670,1734606644685,-727.23,0.00025479,6]
[345988671,1734606644694,-500.0,0.00025479,6]
[345988672,1734606644704,-500.0,0.00025479,6]
[345988673,1734606644713,-500.0,0.00025479,6]
[345988674,1734606644722,-1376.2,0.00025479,6]
[345988675,1734606644732,-3441.13,0.00025479,6]
[345988676,1734606644744,-1750.68,0.00025479,6]
[345988677,1734606644754,-609.36,0.00025479,6]
[345988678,1734606644763,-500.0,0.00025479,6]
[345988679,1734606644772,-6295.78,0.00025479,6]
[345988680,1734606644782,-641.15,0.00025479,6]
[345988681,1734606644792,-500.0,0.00025479,6]
[345988682,1734606644801,-500.0,0.00025479,6]
[345988683,1734606644810,-500.0,0.00025479,6]
[345988684,1734606644822,-500.0,0.00025479,6]
[345988685,1734606644833,-11493.46,0.00025479,6]
[345988686,1734606644845,-500.0,0.00025479,6]
[345988687,1734606644854,-8008.96,0.00025479,6]
[345988688,1734606644864,-7951.57,0.00025479,6]
[345988689,1734606644873,-4391.91,0.00025479,6]
[345988690,1734606644883,-943.53,0.00025479,6]
[345988691,1734606644892,-1206.63,0.00025479,6]
[345988692,1734606644901,-585.62,0.00025479,6]
[345988693,1734606644911,-500.0,0.00025479,6]
[345988694,1734606644921,-887.0,0.00025479,6]
[345988695,1734606645049,-308.12229369,0.00025479,6]
[345988696,1734606645059,-500.0,0.00025479,6]
[345988697,1734606645068,-998.19,0.00025479,6]
[345988698,1734606645078,-32427.44,0.00025479,6]
[345988699,1734606645087,-500.0,0.00025479,6]
[345988700,1734606645101,-3710.11,0.00025479,6]
[345988701,1734606645110,-522.47150179,0.00025479,6]
[345988702,1734606645119,-500.0,0.00025479,6]
[345988703,1734606645128,-500.0,0.00025479,6]
[345988704,1734606645138,-500.0,0.00025479,6]
[345988705,1734606645147,-500.0,0.00025479,6]
[345988706,1734606645157,-500.0,0.00025479,6]
[345988707,1734606645166,-500.0,0.00025479,6]
[345988708,1734606645175,-1159.93,0.00025479,6]
[345988709,1734606645184,-688.24,0.00025479,6]
[345988710,1734606645194,-1000.0,0.00025479,2]
[345988711,1734606645203,-500.0,0.00025479,6]
[345988712,1734606645212,-500.0,0.00025479,6]
[345988713,1734606645222,-3050.5,0.00025479,6]
[345988714,1734606645231,-2688.25,0.00025479,6]
[345988715,1734606645240,-1000.0,0.00025479,2]
[345988716,1734606645249,-13827.35,0.00025479,6]
[345988717,1734606645258,-500.0,0.00025479,6]
[345988718,1734606645268,-500.0,0.00025479,6]
[345988719,1734606645278,-500.0,0.00025479,6]
[345988720,1734606645286,-500.0,0.00025479,6]
[345988721,1734606645296,-912.88,0.00025479,6]
[345988722,1734606645305,-1104.85,0.00025479,6]
[345988723,1734606645315,-773.44,0.00025479,6]
[345988724,1734606645324,-500.0,0.00025479,6]
[345988725,1734606645334,-500.0,0.00025479,6]
[345988726,1734606645344,-653.81,0.00025479,6]
[345988727,1734606645353,-500.0,0.00025479,6]
[345988728,1734606645362,-500.0,0.00025479,6]
[345988729,1734606645371,-500.0,0.00025479,6]
[345988730,1734606645381,-462.7419249,0.00025479,2]
[345988731,1734606645390,-6950.36,0.00025479,6]
[345988732,1734606645400,-831.88,0.00025479,6]
[345988733,1734606645410,-1728.03,0.00025479,6]
[345988734,1734606645420,-500.0,0.00025479,2]
[345988735,1734606645430,-3111.54,0.00025479,2]
[345988736,1734606645439,-500.0,0.00025479,6]
[345988737,1734606645449,-500.0,0.00025479,2]
[345988738,1734606645458,-20403.29,0.00025479,6]
[345988739,1734606645468,-393.94,0.000255,14]
[345988740,1734606645477,-171.0,0.000255,2]
[345988741,1734606645487,-184797.33991768,0.000255,30]
[345988742,1734606645496,-2369.7,0.000255,14]
[345988743,1734606645505,-500.0,0.000255,2]
[345988744,1734606645514,-500.0,0.000255,2]
[345988745,1734606645523,-500.0,0.000255,2]
[345988746,1734606645533,-284.41779666,0.000255,2]
[345988747,1734606645542,-500.0,0.000255,2]
[345988748,1734606645551,-500.0,0.000255,2]
[345988749,1734606645560,-500.0,0.000255,2]
[345988750,1734606645570,-500.0,0.000255,2]
[345988752,1734606645579,-500.0,0.000255,2]
[345988754,1734606645588,-500.0,0.000255,2]
[345988755,1734606645601,-500.0,0.000255,2]
[345988756,1734606645610,-500.0,0.000255,2]
[345988757,1734606645620,-500.0,0.000255,2]
[345988758,1734606645629,-429.69687993,0.000255,2]
[345988759,1734606645638,-4073.59653892,0.00025507,2]
[345988760,1734606645647,-1205.48789996,0.00025507,2]
[345988761,1734606645657,-160.0,0.00025558,4]
[345988762,1734606645667,-161.14978928,0.00025558,5]
[345988763,1734606645676,-500.0,0.000256,7]
[345988764,1734606645686,-65867.17270129,0.000256,2]
[345988765,1734606645695,-27387.02504026,0.000256,2]
[345988766,1734606645705,-4024520.16211115,0.00025607,10]
[345988768,1734606645850,-42000.089831,0.00025607,10]
[345988781,1734606646716,-500.0,0.00023073,2]
[345988782,1734606646727,-287.15425033,0.00023073,2]
[345988783,1734606646739,-500.0,0.00023073,2]
[345988784,1734606646749,-503.02775713,0.00023073,2]
[345988785,1734606646759,-1000.0,0.00023621,2]
[345988786,1734606646768,-1000.0,0.00023621,2]
[345988787,1734606646778,-243.01915662,0.00024622,2]
[345988788,1734606646790,-1256.98084338,0.00024622,2]
[345988789,1734606646799,-1500.0,0.00024622,2]
[345988790,1734606646808,-500.0,0.00024673,2]
[345988791,1734606646819,-1000.0,0.00025221,2]
[345988792,1734606646829,-15279.197981,0.00025607,10]
[345988793,1734606646846,-1928.716192,0.0002532,15]
[345988794,1734606646855,-5474.783808,0.00025607,10]
[345988795,1734606646867,-19439.75231192,0.00025607,10]
[345988796,1734606646949,-1027.8129,0.00025607,10]
[345988797,1734606646961,-25187.09169026,0.00025607,10]